fUSD/lending_fUSD_20260108
["ID","MTS","AMOUNT","RATE_DAILY","PERIOD"]
[400892373,1767855041754,-151.0,0.00015248,2]
[400892374,1767855041763,-1076.0,0.00015255,2]
[400892375,1767855041772,-1076.0,0.0001531,2]
[400892376,1767855041782,-504.82287623,0.0001531,2]
[400892377,1767855041791,-1030.62564826,0.0001531,2]
[400892378,1767855041801,-1000.0,0.0001531,2]
[400892379,1767855041814,-1000.0,0.0001531,2]
[400892380,1767855041824,-509.92734084,0.0001531,2]
[400892381,1767855041833,-1000.0,0.0001531,2]
[400892382,1767855041844,-1000.0,0.0001531,2]
[400892383,1767855041855,-1000.0,0.0001531,2]
[400892384,1767855041864,-1000.0,0.0001531,2]
[400892385,1767855041874,-1000.0,0.0001531,2]
[400892386,1767855041884,-1000.0,0.0001531,2]
[400892387,1767855041894,-1000.0,0.0001531,2]
[400892388,1767855041904,-1000.0,0.0001531,2]
[400892389,1767855041913,-1000.0,0.0001531,2]
[400892390,1767855041923,-1000.0,0.0001531,2]
[400892391,1767855041932,-658.23019616,0.0001531,2]
[400892392,1767855041941,-199.19,0.00015326,2]
[400892393,1767855041950,-151.0,0.00015326,2]
[400892394,1767855041959,-151.0,0.00015326,2]
[400892395,1767855041969,-500.0,0.00015339,2]
[400892396,1767855041978,-1403.83,0.00015342,2]
[400892397,1767855041987,-1076.0,0.00015365,2]
[400892398,1767855041996,-1000.0,0.00015365,2]
[400892399,1767855042006,-1076.0,0.0001542,2]
[400892400,1767855042015,-13369.64866295,0.00015468,2]
[400892401,1767855042026,-11986.28399351,0.00015468,2]
[400892402,1767855042036,-1076.0,0.00015474,2]
[400892403,1767855042046,-601.80098479,0.00015516,2]
[400892404,1767855042055,-1076.0,0.00015529,2]
[400892405,1767855042065,-600.0,0.00015568,2]
[400892406,1767855042074,-240.4,0.00015568,2]
[400892407,1767855042084,-1076.0,0.00015584,2]
[400892408,1767855042094,-1000.0,0.00015612,2]
[400892409,1767855042104,-1403.83,0.00015616,2]
[400892410,1767855042113,-1076.0,0.00015639,2]
[400892411,1767855042122,-1000.0,0.00015639,2]
[400892412,1767855042132,-1000.0,0.00015692,2]
[400892413,1767855042141,-1076.0,0.00015693,2]
[400892414,1767855042150,-1081.41648618,0.00015748,2]
[400892415,1767855042161,-500.0,0.00015836,2]
[400892416,1767855042170,-453.03832283,0.00015858,2]
[400892417,1767855042181,-1500.0,0.00015858,2]
[400892418,1767855042190,-1500.0,0.00015858,2]
[400892419,1767855042199,-1500.0,0.00015858,2]
[400892420,1767855042209,-665.71915277,0.00015858,2]
[400892421,1767855042218,-1500.0,0.00015858,2]
[400892422,1767855042227,-1500.0,0.00015858,2]
[400892423,1767855042237,-1500.0,0.00015858,2]
[400892424,1767855042245,-877.66780599,0.00015858,2]
[400892425,1767855042255,-1500.0,0.00015858,2]
[400892426,1767855042269,-1500.0,0.00015858,2]
[400892427,1767855042278,-1500.0,0.00015858,2]
[400892428,1767855042288,-1403.83,0.0001589,2]
[400892429,1767855042297,-1063.61847191,0.000159,2]
[400892430,1767855042306,-1063.61847186,0.000159,2]
[400892431,1767855042316,-1063.61847186,0.000159,2]
[400892432,1767855042326,-1000.0,0.00015918,2]
[400892433,1767855042336,-500.0,0.00015999,2]
[400892434,1767855042347,-200.0,0.00016,2]
[400892435,1767855042356,-13369.64866295,0.00016076,2]
[400892436,1767855042367,-11986.28399351,0.00016076,2]
[400892437,1767855042377,-736.0,0.00016086,2]
[400892438,1767855042386,-1043.35394918,0.00016106,2]
[400892439,1767855042396,-270.73180541,0.00016106,2]
[400892440,1767855042407,-500.0,0.00016106,2]
[400892441,1767855042416,-209.40437684,0.00016106,2]
[400892442,1767855042425,-500.0,0.00016106,2]
[400892443,1767855042435,-1500.0,0.00016106,2]
[400892444,1767855042445,-500.0,0.00016106,2]
[400892445,1767855042455,-1500.0,0.00016106,2]
[400892446,1767855042464,-500.0,0.00016106,2]
[400892447,1767855042473,-1500.0,0.00016106,2]
[400892448,1767855042486,-500.0,0.00016106,2]
[400892449,1767855042495,-1500.0,0.00016106,2]
[400892450,1767855042505,-500.0,0.00016106,2]
[400892451,1767855042514,-1500.0,0.00016106,2]
[400892452,1767855042523,-500.0,0.00016106,2]
[400892453,1767855042533,-1500.0,0.00016106,2]
[400892454,1767855042542,-151.0,0.00016106,2]
[400892455,1767855042553,-500.0,0.00016106,2]
[400892456,1767855042562,-1500.0,0.00016106,2]
[400892457,1767855042571,-322.6107,0.00016106,2]
[400892458,1767855042581,-500.0,0.00016106,2]
[400892459,1767855042590,-1500.0,0.00016106,2]
[400892460,1767855042604,-574.12855637,0.00016106,2]
[400892461,1767855042613,-500.0,0.00016106,2]
[400892462,1767855042623,-1500.0,0.00016106,2]
[400892463,1767855042633,-1500.0,0.00016106,2]
[400892464,1767855042643,-500.0,0.00016106,2]
[400892465,1767855042653,-1500.0,0.00016106,2]
[400892466,1767855042662,-500.0,0.00016106,2]
[400892467,1767855042672,-500.0,0.00016106,2]
[400892468,1767855042683,-500.0,0.00016106,2]
[400892469,1767855042693,-500.0,0.00016106,2]
[400892470,1767855042703,-500.0,0.00016106,2]
[400892471,1767855042712,-151.0,0.00016106,2]
[400892472,1767855042722,-498.61515312,0.00016106,2]
[400892473,1767855042732,-500.0,0.00016106,2]
[400892474,1767855042741,-500.0,0.00016106,2]
[400892475,1767855042751,-500.0,0.00016106,2]
[400892476,1767855042762,-500.0,0.00016106,2]
[400892477,1767855042772,-500.0,0.00016106,2]
[400892478,1767855042782,-500.0,0.00016106,2]
[400892479,1767855042792,-500.0,0.00016106,2]
[400892480,1767855042802,-500.0,0.00016106,2]
[400892481,1767855042813,-500.0,0.00016106,2]
[400892482,1767855042822,-500.0,0.00016106,2]
[400892483,1767855042832,-500.0,0.00016106,2]
[400892484,1767855042842,-500.0,0.00016106,2]
[400892485,1767855042852,-500.0,0.00016106,2]
[400892486,1767855042862,-500.0,0.00016106,2]
[400892487,1767855042872,-500.0,0.00016106,2]
[400892488,1767855042882,-500.0,0.00016106,2]
[400892489,1767855042891,-500.0,0.00016106,2]
[400892490,1767855042901,-500.0,0.00016106,2]
[400892491,1767855042911,-500.0,0.00016106,2]
[400892492,1767855042920,-2000.0,0.00016106,2]
[400892493,1767855042930,-500.0,0.00016106,2]
[400892494,1767855042940,-500.0,0.00016106,2]
[400892495,1767855042950,-169.1378307,0.00016106,2]
[400892496,1767855042964,-2000.0,0.00016106,2]
[400892497,1767855042973,-500.0,0.00016106,2]
[400892498,1767855042983,-151.66241854,0.00016106,2]
[400892499,1767855042993,-500.0,0.00016106,2]
[400892500,1767855043003,-2000.0,0.00016106,2]
[400892501,1767855043013,-500.0,0.00016106,2]
[400892502,1767855043023,-500.0,0.00016106,2]
[400892503,1767855043033,-2000.0,0.00016106,2]
[400892504,1767855043043,-500.0,0.00016106,2]
[400892505,1767855043054,-500.0,0.00016106,2]
[400892506,1767855043063,-2000.0,0.00016106,2]
[400892507,1767855043073,-500.0,0.00016106,2]
[400892508,1767855043083,-2000.0,0.00016106,2]
[400892509,1767855043093,-500.0,0.00016106,2]
[400892510,1767855043102,-2000.0,0.00016106,2]
[400892511,1767855043112,-578.20924308,0.00016106,2]
[400892512,1767855043122,-2000.0,0.00016106,2]
[400892513,1767855043131,-2000.0,0.00016106,2]
[400892514,1767855043141,-620.0,0.00016106,2]
[400892515,1767855043155,-2000.0,0.00016106,2]
[400892516,1767855043165,-2000.0,0.00016106,2]
[400892517,1767855043175,-500.0,0.00016106,2]
[400892518,1767855043184,-622.14655061,0.00016106,2]
[400892519,1767855043194,-9999.99,0.00016116,2]
[400892520,1767855043204,-1403.83,0.00016164,2]
[400892522,1767855043213,-150.0,0.000162,2]
[400892524,1767855043223,-150.0,0.00016246,2]
[400892525,1767855043233,-150.0,0.00016292,2]
[400892526,1767855043243,-601.80098479,0.0001631,2]
[400892527,1767855043252,-737.13729626,0.00016338,2]
[400892528,1767855043262,-150.0,0.00016338,2]
[400892529,1767855043272,-150.0,0.00016385,2]
[400892530,1767855043281,-162.0,0.000164,2]
[400892531,1767855043291,-833.0,0.000164,2]
[400892532,1767855043300,-162.0,0.000164,2]
[400892533,1767855043311,-833.0,0.000164,2]
[400892534,1767855043322,-833.0,0.000164,2]
[400892535,1767855043333,-162.0,0.000164,2]
[400892536,1767855043343,-833.0,0.000164,2]
[400892537,1767855043356,-2000.0,0.00016406,2]
[400892538,1767855043366,-2000.0,0.00016406,2]
[400892539,1767855043376,-2000.0,0.00016406,2]
[400892540,1767855043385,-2000.0,0.00016406,2]
[400892541,1767855043395,-2000.0,0.00016406,2]
[400892542,1767855043405,-2000.0,0.00016406,2]
[400892543,1767855043415,-2000.0,0.00016406,2]
[400892544,1767855043424,-2000.0,0.00016406,2]
[400892545,1767855043434,-2000.0,0.00016406,2]
[400892546,1767855043444,-157.72323008,0.00016418,2]
[400892547,1767855043453,-823.0,0.0001642,2]
[400892548,1767855043463,-451.90263959,0.00016427,2]
[400892549,1767855043473,-150.0,0.00016431,2]
[400892550,1767855043487,-1000.0,0.00016431,2]
[400892551,1767855043496,-19208.97767904,0.00016437,2]
[400892552,1767855043506,-500.0,0.00016437,2]
[400892553,1767855043516,-1964.04048714,0.00016438,2]
[400892554,1767855043525,-1964.04048714,0.00016438,2]
[400892555,1767855043535,-1964.04048714,0.00016438,2]
[400892556,1767855043545,-1964.04048714,0.00016438,2]
[400892557,1767855043558,-1964.04048714,0.00016438,2]
[400892558,1767855043567,-1964.04048714,0.00016438,2]
[400892559,1767855043577,-1964.04048714,0.00016438,2]
[400892560,1767855043587,-1964.04048714,0.00016438,2]
[400892561,1767855043596,-1964.04048714,0.00016438,2]
[400892562,1767855043606,-1964.04048714,0.00016438,2]
[400892563,1767855043616,-1964.04048714,0.00016438,2]
[400892564,1767855043625,-1964.04048714,0.00016438,2]
[400892565,1767855043635,-1964.04048714,0.00016438,2]
[400892566,1767855043646,-1964.04048714,0.00016438,2]
[400892567,1767855043656,-1964.04048714,0.00016438,2]
[400892568,1767855043666,-1964.04048714,0.00016438,2]
[400892569,1767855043676,-1964.04048714,0.00016438,2]
[400892570,1767855043686,-1964.04048714,0.00016438,2]
[400892571,1767855043696,-1964.04048714,0.00016438,2]
[400892572,1767855043708,-1964.04048714,0.00016438,2]
[400892573,1767855043718,-1964.04048714,0.00016438,2]
[400892574,1767855043728,-1964.04048714,0.00016438,2]
[400892575,1767855043738,-1964.04048714,0.00016438,2]
[400892576,1767855043748,-1964.04048714,0.00016438,2]
[400892577,1767855043760,-1964.04048714,0.00016438,2]
[400892578,1767855043770,-1964.04048714,0.00016438,2]
[400892579,1767855043780,-1964.04048714,0.00016438,2]
[400892580,1767855043790,-1964.04048714,0.00016438,2]
[400892581,1767855043800,-1964.04048714,0.00016438,2]
[400892582,1767855043811,-1964.04048714,0.00016438,2]
[400892583,1767855043822,-1964.04048714,0.00016438,2]
[400892584,1767855043833,-1964.04048714,0.00016438,2]
[400892585,1767855043844,-1964.04048714,0.00016438,2]
[400892586,1767855043854,-1964.04048714,0.00016438,2]
[400892587,1767855043864,-1964.04048714,0.00016438,2]
[400892588,1767855043874,-1964.04048714,0.00016438,2]
[400892589,1767855043884,-1964.04048714,0.00016438,2]
[400892590,1767855043894,-1964.04048714,0.00016438,2]
[400892591,1767855043904,-1964.04048714,0.00016438,2]
[400892592,1767855043914,-1964.04048714,0.00016438,2]
[400892593,1767855043923,-1964.04048714,0.00016438,2]
[400892594,1767855043933,-1964.04048714,0.00016438,2]
[400892595,1767855043942,-1964.04048714,0.00016438,2]
[400892596,1767855043953,-1964.04048714,0.00016438,2]
[400892597,1767855043963,-1964.04048714,0.00016438,2]
[400892598,1767855043972,-1964.04048714,0.00016438,2]
[400892599,1767855043982,-1964.04048714,0.00016438,2]
[400892600,1767855043992,-1964.04048714,0.00016438,2]
[400892601,1767855044003,-1964.04048714,0.00016438,2]
[400892602,1767855044013,-1964.04048714,0.00016438,2]
[400892603,1767855044023,-1964.04048714,0.00016438,2]
[400892604,1767855044034,-1964.04048714,0.00016438,2]
[400892605,1767855044044,-1964.04048714,0.00016438,2]
[400892606,1767855044054,-1964.04048714,0.00016438,2]
[400892607,1767855044064,-1964.04048714,0.00016438,2]
[400892608,1767855044074,-1964.04048714,0.00016438,2]
[400892609,1767855044085,-1964.04048714,0.00016438,2]
[400892610,1767855044096,-1964.04048714,0.00016438,2]
[400892611,1767855044106,-1964.04048714,0.00016438,2]
[400892612,1767855044117,-1964.04048714,0.00016438,2]
[400892613,1767855044128,-1964.04048714,0.00016438,2]
[400892614,1767855044138,-1957.02605684,0.00016438,2]
[400892615,1767855044158,-1957.02605684,0.00016438,2]
[400892616,1767855044168,-1957.02605684,0.00016438,2]
[400892617,1767855044178,-1957.02605684,0.00016438,2]
[400892618,1767855044188,-1957.02605684,0.00016438,2]
[400892619,1767855044198,-1957.02605684,0.00016438,2]
[400892620,1767855044207,-1957.02605684,0.00016438,2]
[400892621,1767855044217,-1957.02605684,0.00016438,2]
[400892622,1767855044227,-1957.02605684,0.00016438,2]
[400892623,1767855044237,-1957.02605684,0.00016438,2]
[400892624,1767855044247,-1957.02605684,0.00016438,2]
[400892625,1767855044256,-1957.02605684,0.00016438,2]
[400892626,1767855044266,-1957.02605684,0.00016438,2]
[400892627,1767855044275,-1957.02605684,0.00016438,2]
[400892628,1767855044285,-1957.02605684,0.00016438,2]
[400892629,1767855044294,-1957.02605684,0.00016438,2]
[400892630,1767855044304,-1957.02605684,0.00016438,2]
[400892631,1767855044314,-1957.02605684,0.00016438,2]
[400892632,1767855044324,-1957.02605684,0.00016438,2]
[400892633,1767855044334,-1957.02605684,0.00016438,2]
[400892634,1767855044348,-1957.02605684,0.00016438,2]
[400892635,1767855044358,-1957.02605684,0.00016438,2]
[400892636,1767855044367,-1957.02605684,0.00016438,2]
[400892637,1767855044377,-1957.02605684,0.00016438,2]
[400892638,1767855044387,-1957.02605684,0.00016438,2]
[400892639,1767855044397,-1957.02605684,0.00016438,2]
[400892640,1767855044407,-1957.02605684,0.00016438,2]
[400892641,1767855044416,-1957.02605686,0.00016438,2]
[400892642,1767855044426,-500.0,0.00016438,2]
[400892643,1767855044435,-1403.83,0.00016438,2]
[400892644,1767855044446,-800.0,0.00016438,2]
[400892645,1767855044456,-654.79,0.00016438,2]
[400892646,1767855044465,-600.0,0.00016475,2]
[400892647,1767855044477,-240.4,0.00016475,2]
[400892648,1767855044487,-150.0,0.00016477,2]
[400892649,1767855044497,-500.0,0.00016493,2]
[400892650,1767855044507,-1000.0,0.00016515,2]
[400892651,1767855044517,-150.0,0.00016523,2]
[400892652,1767855044526,-3292.0,0.00016542,2]
[400892653,1767855044535,-2794.0,0.00016547,2]
[400892654,1767855044545,-500.0,0.00016548,2]
[400892655,1767855044556,-250.0,0.00016555,2]
[400892656,1767855044566,-150.0,0.00016569,2]
[400892657,1767855044576,-312.84,0.00016571,2]
[400892658,1767855044585,-195.08159117,0.00016602,2]
[400892659,1767855044595,-150.0,0.00016615,2]
[400892660,1767855044604,-217.15233878,0.00016654,2]
[400892661,1767855044614,-157.22325972,0.00016654,2]
[400892662,1767855044623,-595.37131296,0.00016654,2]
[400892663,1767855044632,-151.0,0.00016654,2]
[400892664,1767855044643,-150.0,0.00016662,2]
[400892665,1767855044654,-1000.0,0.00016674,2]
[400892666,1767855044664,-13369.64866295,0.00016684,2]
[400892667,1767855044673,-11986.28399351,0.00016684,2]
[400892668,1767855044683,-150.0,0.00016704,2]
[400892669,1767855044693,-150.0,0.00016708,2]
[400892670,1767855044707,-1403.83,0.00016712,2]
[400892671,1767855044716,-165.16,0.00016712,2]
[400892672,1767855044726,-833.0,0.0001672,2]
[400892673,1767855044735,-162.0,0.0001672,2]
[400892674,1767855044745,-162.0,0.0001672,2]
[400892675,1767855044755,-304.30680198,0.00016732,2]
[400892676,1767855044765,-150.0,0.00016754,2]
[400892677,1767855044774,-163.7104368,0.00016768,2]
[400892678,1767855044784,-150.0,0.00016792,2]
[400892679,1767855044793,-150.0,0.000168,2]
[400892680,1767855044803,-150.0,0.00016846,2]
[400892681,1767855044813,-180.0,0.00016864,2]
[400892682,1767855044823,-150.0,0.00016892,2]
[400892683,1767855044832,-165.04,0.000169,2]
[400892684,1767855044843,-150.0,0.00016902,2]
[400892685,1767855044853,-150.0,0.00016904,2]
[400892686,1767855044863,-150.0,0.00016929,2]
[400892687,1767855044872,-150.0,0.00016938,2]
[400892688,1767855044882,-150.0,0.00016946,2]
[400892689,1767855044892,-2500.0,0.00016954,2]
[400892690,1767855044901,-2500.0,0.00016954,2]
[400892691,1767855044913,-1356.56087805,0.00016954,2]
[400892692,1767855044923,-2500.0,0.00016954,2]
[400892693,1767855044935,-1976.3156368,0.00016954,2]
[400892694,1767855044946,-1181.44262662,0.00016954,2]
[400892695,1767855044956,-505.81602002,0.00016954,2]
[400892696,1767855044966,-2487.99755872,0.00016954,2]
[400892697,1767855044975,-2500.0,0.00016954,2]
[400892698,1767855044987,-157.72323008,0.00016966,2]
[400892699,1767855044996,-150.0,0.00016985,2]
[400892700,1767855045006,-500.0,0.00016986,2]
[400892701,1767855045015,-500.0,0.00016986,2]
[400892702,1767855045025,-500.0,0.00016986,2]
[400892703,1767855045034,-1403.83,0.00016986,2]
[400892704,1767855045044,-250.0,0.00017,2]
[400892705,1767855045055,-150.0,0.00017024,2]
[400892706,1767855045065,-150.0,0.00017031,2]
[400892707,1767855045075,-162.0,0.0001704,2]
[400892708,1767855045084,-162.0,0.0001704,2]
[400892709,1767855045094,-833.0,0.0001704,2]
[400892710,1767855045104,-162.0,0.0001704,2]
[400892711,1767855045113,-162.0,0.0001704,2]
[400892712,1767855045122,-661.47,0.00017041,2]
[400892713,1767855045132,-661.47,0.00017041,2]
[400892714,1767855045142,-661.47,0.00017041,2]
[400892715,1767855045151,-661.47,0.00017041,2]
[400892716,1767855045162,-661.47,0.00017041,2]
[400892718,1767855045171,-1334.29,0.00017041,2]
[400892719,1767855045182,-150.0,0.00017046,2]
[400892720,1767855045192,-150.0,0.00017077,2]
[400892721,1767855045202,-20452.74518303,0.000171,2]
[400892722,1767855045212,-601.80098479,0.00017105,2]
[400892723,1767855045222,-1000.0,0.00017112,2]
[400892724,1767855045231,-737.13729626,0.00017119,2]
[400892725,1767855045241,-150.0,0.00017123,2]
[400892726,1767855045250,-312.84,0.0001713,2]
[400892727,1767855045260,-2276.96201759,0.0001715,2]
[400892728,1767855045270,-5242.82669963,0.0001715,2]
[400892729,1767855045279,-150.0,0.00017169,2]
[400892730,1767855045289,-300.0,0.00017178,2]
[400892731,1767855045300,-178.56,0.00017178,2]
[400892732,1767855045312,-225.18697532,0.00017202,2]
[400892733,1767855045321,-617.40005154,0.00017202,2]
[400892734,1767855045333,-151.0,0.00017202,2]
[400892735,1767855045343,-833.4,0.00017209,2]
[400892736,1767855045353,-150.0,0.00017215,2]
[400892737,1767855045362,-1403.83,0.0001726,2]
[400892738,1767855045372,-156.0,0.0001726,2]
[400892739,1767855045382,-150.0,0.00017262,2]
[400892740,1767855045391,-300.0,0.00017275,2]
[400892741,1767855045401,-300.0,0.0001728,2]
[400892742,1767855045411,-833.4,0.00017281,2]
[400892743,1767855045421,-300.0,0.00017283,2]
[400892744,1767855045432,-300.0,0.00017291,2]
[400892745,1767855045443,-13369.64866295,0.00017292,2]
[400892746,1767855045455,-11986.28399351,0.00017292,2]
[400892747,1767855045464,-164.0,0.000173,2]
[400892748,1767855045477,-150.0,0.00017308,2]
[400892749,1767855045487,-300.0,0.00017341,2]
[400892750,1767855045497,-787.62614361,0.00017342,2]
[400892751,1767855045507,-833.4,0.00017353,2]
[400892752,1767855045517,-150.0,0.00017354,2]
[400892753,1767855045527,-1000.0,0.00017358,2]
[400892754,1767855045537,-833.0,0.0001736,2]
[400892755,1767855045547,-833.0,0.0001736,2]
[400892757,1767855045557,-833.0,0.0001736,2]
[400892758,1767855045566,-162.0,0.0001736,2]
[400892759,1767855045576,-162.0,0.0001736,2]
[400892761,1767855045585,-162.0,0.0001736,2]
[400892763,1767855045936,-162.0,0.0001736,2]
[400892764,1767855045946,-162.0,0.0001736,2]
[400892765,1767855045955,-300.0,0.0001737,2]
[400892766,1767855045965,-1000.0,0.00017374,2]
[400892767,1767855045974,-300.0,0.00017379,2]
[400892768,1767855045983,-300.0,0.00017379,2]
[400892769,1767855045992,-300.0,0.00017381,2]
[400892770,1767855046001,-300.0,0.00017384,2]
[400892771,1767855046010,-5888.0,0.00017391,2]
[400892772,1767855046019,-300.0,0.00017393,2]
[400892773,1767855046028,-469.50438451,0.00017395,2]
[400892774,1767855046037,-150.0,0.000174,2]
[400892775,1767855046046,-1000.0,0.000174,2]
[400892776,1767855046056,-373.51,0.0001741,2]
[400892777,1767855046067,-300.0,0.0001741,2]
[400892778,1767855046076,-300.0,0.00017425,2]
[400892779,1767855046086,-300.0,0.00017425,2]
[400892780,1767855046095,-833.4,0.00017425,2]
[400892781,1767855046104,-300.0,0.00017426,2]
[400892782,1767855046114,-300.0,0.00017426,2]
[400892783,1767855046123,-300.0,0.00017428,2]
[400892784,1767855046132,-373.51,0.00017439,2]
[400892785,1767855046141,-150.0,0.00017446,2]
[400892786,1767855046152,-300.0,0.00017452,2]
[400892787,1767855046162,-150.0,0.00017452,2]
[400892788,1767855046172,-150.0,0.00017452,2]
[400892789,1767855046182,-300.0,0.00017465,2]
[400892790,1767855046191,-150.0,0.00017465,2]
[400892791,1767855046200,-300.0,0.00017466,2]
[400892792,1767855046210,-373.51,0.00017468,2]
[400892793,1767855046219,-300.0,0.00017471,2]
[400892794,1767855046228,-300.0,0.00017475,2]
[400892795,1767855046239,-334.5472959,0.00017475,2]
[400892796,1767855046248,-642.94,0.00017475,2]
[400892797,1767855046258,-300.0,0.00017481,2]
[400892798,1767855046267,-300.0,0.00017481,2]
[400892799,1767855046278,-300.0,0.00017485,2]
[400892800,1767855046287,-300.0,0.00017487,2]
[400892801,1767855046297,-1252.0,0.00017489,2]
[400892802,1767855046317,-150.0,0.00017492,2]
[400892803,1767855046333,-833.4,0.00017497,2]
[400892804,1767855046342,-300.0,0.00017499,2]
[400892805,1767855046352,-2000.0,0.000175,2]
[400892806,1767855046361,-3000.0,0.00017502,2]
[400892807,1767855046371,-1520.5636209,0.00017502,2]
[400892808,1767855046381,-3000.0,0.00017502,2]
[400892809,1767855046390,-3000.0,0.00017502,2]
[400892810,1767855046400,-300.0,0.00017505,2]
[400892811,1767855046410,-157.72323008,0.00017513,2]
[400892812,1767855046419,-300.0,0.00017516,2]
[400892813,1767855046429,-300.0,0.00017519,2]
[400892814,1767855046438,-300.0,0.00017526,2]
[400892815,1767855046448,-300.0,0.0001753,2]
[400892816,1767855046458,-1403.85859706,0.00017534,2]
[400892817,1767855046468,-1042.30773041,0.00017534,2]
[400892818,1767855046480,-300.0,0.00017536,2]
[400892819,1767855046489,-1000.0,0.00017536,2]
[400892820,1767855046499,-300.0,0.00017538,2]
[400892821,1767855046508,-150.0,0.00017538,2]
[400892822,1767855046519,-300.0,0.00017543,2]
[400892823,1767855046528,-150.0,0.00017543,2]
[400892824,1767855046538,-300.0,0.00017549,2]
[400892825,1767855046547,-300.0,0.00017556,2]
[400892826,1767855046560,-300.0,0.00017557,2]
[400892827,1767855046570,-150.0,0.00017562,2]
[400892828,1767855046579,-300.0,0.00017563,2]
[400892829,1767855046589,-300.0,0.00017569,2]
[400892830,1767855046598,-300.0,0.00017569,2]
[400892831,1767855046608,-833.4,0.00017569,2]
[400892832,1767855046618,-300.0,0.00017574,2]
[400892833,1767855046627,-300.0,0.00017576,2]
[400892834,1767855046636,-1000.0,0.00017577,2]
[400892835,1767855046646,-300.0,0.00017578,2]
[400892836,1767855046655,-5888.0,0.00017581,2]
[400892837,1767855046665,-5888.0,0.00017581,2]
[400892838,1767855046675,-150.0,0.00017585,2]
[400892839,1767855046684,-300.0,0.00017588,2]
[400892840,1767855046694,-300.0,0.00017588,2]
[400892841,1767855046703,-300.0,0.00017594,2]
[400892842,1767855046713,-1000.0,0.000176,2]
[400892843,1767855046723,-300.0,0.00017605,2]
[400892844,1767855046733,-300.0,0.00017607,2]
[400892845,1767855046742,-300.0,0.00017607,2]
[400892846,1767855046752,-300.0,0.00017608,2]
[400892847,1767855046761,-321.19386593,0.00017626,2]
[400892848,1767855046771,-1000.0,0.00017628,2]
[400892849,1767855046781,-150.0,0.00017631,2]
[400892850,1767855046790,-300.0,0.00017633,2]
[400892851,1767855046800,-300.0,0.00017637,2]
[400892852,1767855046809,-833.4,0.0001764,2]
[400892853,1767855046818,-9878.63877895,0.0001764,2]
[400892854,1767855046828,-300.0,0.00017645,2]
[400892855,1767855046837,-300.0,0.0001765,2]
[400892856,1767855046847,-1000.0,0.0001765,2]
[400892857,1767855046857,-150.0,0.00017651,2]
[400892858,1767855046866,-300.0,0.00017652,2]
[400892859,1767855046876,-300.0,0.00017653,2]
[400892860,1767855046886,-300.0,0.00017653,2]
[400892861,1767855046896,-150.0,0.00017662,2]
[400892862,1767855046906,-300.0,0.00017675,2]
[400892863,1767855046915,-150.0,0.00017677,2]
[400892864,1767855046925,-833.0,0.0001768,2]
[400892865,1767855046934,-169.0,0.0001768,2]
[400892866,1767855046944,-833.0,0.0001768,2]
[400892867,1767855046953,-162.0,0.0001768,2]
[400892868,1767855046962,-833.0,0.0001768,2]
[400892869,1767855046971,-321.19386593,0.00017681,2]
[400892870,1767855046981,-300.0,0.00017688,2]
[400892871,1767855046990,-300.0,0.00017692,2]
[400892872,1767855047000,-300.0,0.00017692,2]
[400892873,1767855047009,-1000.0,0.00017692,2]
[400892874,1767855047020,-300.0,0.000177,2]
[400892875,1767855047029,-208.56,0.00017704,2]
[400892876,1767855047039,-300.0,0.00017705,2]
[400892877,1767855047048,-25000.0,0.00017706,3]
[400892878,1767855047058,-1000.0,0.00017709,2]